[Event "*** SCC Grand Prix: Titled Tuesday Blitz"]
[Site "Chess.com"]
[Date "2020.07.07"]
[Round "2"]
[White "Agnes66678"]
[Black "xberli"]
[Result "0-1"]
[WhiteElo "2449"]
[BlackElo "2291"]
[TimeControl "180+1"]
[EndTime "10:16:54 PDT"]
[Termination "xberli won by resignation"]

1. Nf3 {[%clk 0:03:00]} 1... Nf6 {[%clk 0:02:59.4]} 2. g3 {[%clk 0:02:58.7]}
2... g6 {[%clk 0:02:59.7]} 3. Bg2 {[%clk 0:02:58.8]} 3... Bg7 {[%clk 0:03:00]}
4. O-O {[%clk 0:02:58.8]} 4... O-O {[%clk 0:03:00.2]} 5. d4 {[%clk 0:02:58.1]}
5... d5 {[%clk 0:02:59.5]} 6. c4 {[%clk 0:02:58.1]} 6... dxc4 {[%clk 0:03:00.4]}
7. Na3 {[%clk 0:02:54.7]} 7... Nc6 {[%clk 0:03:00.3]} 8. Nxc4 {[%clk 0:02:53.9]}
8... Be6 {[%clk 0:03:00.1]} 9. b3 {[%clk 0:02:52.7]} 9... a5 {[%clk 0:02:57.3]}
10. Bb2 {[%clk 0:02:48.6]} 10... a4 {[%clk 0:02:56.8]} 11. Qc2 {[%clk
0:02:46.4]} 11... Bd5 {[%clk 0:02:56]} 12. Rfe1 {[%clk 0:02:43.5]} 12... Be4
{[%clk 0:02:38]} 13. Qd2 {[%clk 0:02:41.9]} 13... Qc8 {[%clk 0:02:23.5]} 14.
Nce5 {[%clk 0:02:40.4]} 14... Rd8 {[%clk 0:02:18.2]} 15. Qf4 {[%clk 0:02:36.4]}
15... a3 {[%clk 0:02:06.3]} 16. Bc3 {[%clk 0:02:34.7]} 16... Qf5 {[%clk
0:01:59.7]} 17. Nxc6 {[%clk 0:02:32.3]} 17... Bxc6 {[%clk 0:01:56.7]} 18. Qxf5
{[%clk 0:02:27.4]} 18... gxf5 {[%clk 0:01:57.6]} 19. Rac1 {[%clk 0:02:27.4]}
19... Bd5 {[%clk 0:01:31.3]} 20. Bb4 {[%clk 0:02:24.8]} 20... c6 {[%clk
0:01:27.8]} 21. Bxe7 {[%clk 0:02:23.1]} 21... Re8 {[%clk 0:01:27.9]} 22. Bb4
{[%clk 0:02:19.1]} 22... Ng4 {[%clk 0:01:25.7]} 23. e3 {[%clk 0:02:17.5]} 23...
Be4 {[%clk 0:01:22.8]} 24. h3 {[%clk 0:02:16]} 24... Nf6 {[%clk 0:01:22.8]} 25.
Nd2 {[%clk 0:02:03.3]} 25... Nd5 {[%clk 0:01:12.5]} 26. Bd6 {[%clk 0:02:00.7]}
26... Bxg2 {[%clk 0:01:04.4]} 27. Kxg2 {[%clk 0:01:59.8]} 27... Re6 {[%clk
0:01:04.4]} 28. Bf4 {[%clk 0:01:59.1]} 28... Nb4 {[%clk 0:01:01.4]} 29. Ra1
{[%clk 0:01:51.9]} 29... Nc2 {[%clk 0:01:00.5]} 30. Rec1 {[%clk 0:01:52]} 30...
Nxa1 {[%clk 0:01:00.2]} 31. Rxa1 {[%clk 0:01:52.9]} 31... c5 {[%clk 0:01:00.5]}
32. Rc1 {[%clk 0:01:36.6]} 32... cxd4 {[%clk 0:00:58.6]} 33. exd4 {[%clk
0:01:37.5]} 33... Bxd4 {[%clk 0:00:59]} 34. Nf3 {[%clk 0:01:37.8]} 34... Bb6
{[%clk 0:00:52.8]} 35. g4 {[%clk 0:01:30.8]} 35... fxg4 {[%clk 0:00:50.2]} 36.
hxg4 {[%clk 0:01:31.7]} 36... Re2 {[%clk 0:00:49.6]} 37. Bd2 {[%clk 0:01:31.2]}
37... Rd8 {[%clk 0:00:44.8]} 38. Bb4 {[%clk 0:01:26.5]} 38... Rxf2+ {[%clk
0:00:43.7]} 39. Kg3 {[%clk 0:01:25.5]} 39... Rxa2 {[%clk 0:00:44.6]} 40. Ng5
{[%clk 0:01:21.9]} 40... Be3 {[%clk 0:00:41.4]} 41. Ne4 {[%clk 0:01:21.6]} 41...
Bxc1 {[%clk 0:00:40.8]} 0-1

[Event "*** SCC Grand Prix: Titled Tuesday Blitz"]
[Site "Chess.com"]
[Date "2020.07.07"]
[Round "2"]
[White "GMaka"]
[Black "Airquake"]
[Result "1-0"]
[WhiteElo "2336"]
[BlackElo "2629"]
[TimeControl "180+1"]
[EndTime "10:16:59 PDT"]
[Termination "GMaka won on time"]

1. d4 {[%clk 0:03:00.9]} 1... Nf6 {[%clk 0:02:59.2]} 2. Bg5 {[%clk 0:03:00.5]}
2... e6 {[%clk 0:03:00.1]} 3. e4 {[%clk 0:03:00]} 3... d6 {[%clk 0:02:56.8]} 4.
Nc3 {[%clk 0:02:57.7]} 4... Nbd7 {[%clk 0:02:57.1]} 5. Nf3 {[%clk 0:02:48.9]}
5... Be7 {[%clk 0:02:55.3]} 6. e5 {[%clk 0:02:40.2]} 6... dxe5 {[%clk 0:02:50]}
7. dxe5 {[%clk 0:02:41.1]} 7... Ng4 {[%clk 0:02:47.6]} 8. Bxe7 {[%clk
0:02:37.5]} 8... Qxe7 {[%clk 0:02:48.5]} 9. Qd4 {[%clk 0:02:37.3]} 9... Nh6
{[%clk 0:02:44.2]} 10. Bd3 {[%clk 0:02:32.2]} 10... Nb6 {[%clk 0:02:30.6]} 11.
O-O-O {[%clk 0:02:26.8]} 11... Bd7 {[%clk 0:02:26.3]} 12. Nb5 {[%clk 0:02:17.9]}
12... Bc6 {[%clk 0:02:20.3]} 13. Rhe1 {[%clk 0:02:04.5]} 13... Nf5 {[%clk
0:01:55.3]} 14. Bxf5 {[%clk 0:01:57.8]} 14... exf5 {[%clk 0:01:49.9]} 15. Nd6+
{[%clk 0:01:54.7]} 15... Kf8 {[%clk 0:01:40.2]} 16. Nxf5 {[%clk 0:01:52.1]}
16... Qe6 {[%clk 0:01:02.4]} 17. Qc5+ {[%clk 0:01:50.7]} 17... Kg8 {[%clk
0:01:02.5]} 18. Ne7+ {[%clk 0:01:49]} 18... Kf8 {[%clk 0:01:03.4]} 19. Nxc6+
{[%clk 0:01:48]} 19... Kg8 {[%clk 0:01:03.7]} 20. Ne7+ {[%clk 0:01:45.6]} 20...
Kf8 {[%clk 0:01:03.9]} 21. Ng6+ {[%clk 0:01:38.5]} 21... Kg8 {[%clk 0:01:02.9]}
22. Nxh8 {[%clk 0:01:38.2]} 22... Qxa2 {[%clk 0:01:03.1]} 23. Qxc7 {[%clk
0:01:32.6]} 23... Qa1+ {[%clk 0:00:48.9]} 24. Kd2 {[%clk 0:01:32.4]} 24... Qa5+
{[%clk 0:00:49.2]} 25. Ke2 {[%clk 0:01:25.9]} 25... Qb5+ {[%clk 0:00:37.5]} 26.
c4 {[%clk 0:01:22.5]} 1-0

[Event "*** SCC Grand Prix: Titled Tuesday Blitz"]
[Site "Chess.com"]
[Date "2020.07.07"]
[Round "2"]
[White "chessablanca"]
[Black "YellowJacek"]
[Result "1-0"]
[WhiteElo "2464"]
[BlackElo "2270"]
[TimeControl "180+1"]
[EndTime "10:17:00 PDT"]
[Termination "chessablanca won by resignation"]

1. Nf3 {[%clk 0:03:00.9]} 1... c5 {[%clk 0:02:58.3]} 2. c4 {[%clk 0:02:58.8]}
2... Nc6 {[%clk 0:02:57.7]} 3. Nc3 {[%clk 0:02:59.3]} 3... g6 {[%clk 0:02:56.8]}
4. e3 {[%clk 0:02:59.3]} 4... Bg7 {[%clk 0:02:55.9]} 5. d4 {[%clk 0:02:59.6]}
5... cxd4 {[%clk 0:02:55]} 6. exd4 {[%clk 0:03:00.5]} 6... Nf6 {[%clk
0:02:31.2]} 7. d5 {[%clk 0:02:54.5]} 7... Nb8 {[%clk 0:02:25.1]} 8. Be3 {[%clk
0:02:54.3]} 8... O-O {[%clk 0:02:24.6]} 9. Be2 {[%clk 0:02:53.4]} 9... d6 {[%clk
0:02:23.7]} 10. O-O {[%clk 0:02:53.2]} 10... Nbd7 {[%clk 0:02:22.2]} 11. Qd2
{[%clk 0:02:52.2]} 11... Nc5 {[%clk 0:02:21.3]} 12. Nd4 {[%clk 0:02:42.6]} 12...
a6 {[%clk 0:02:15.1]} 13. Qc2 {[%clk 0:02:42]} 13... e5 {[%clk 0:01:47.1]} 14.
dxe6 {[%clk 0:02:37.3]} 14... Nxe6 {[%clk 0:01:47]} 15. Rad1 {[%clk 0:02:35.8]}
15... Qc7 {[%clk 0:01:37.4]} 16. b3 {[%clk 0:02:31.9]} 16... Nxd4 {[%clk
0:01:34]} 17. Bxd4 {[%clk 0:02:31.4]} 17... Bf5 {[%clk 0:01:32.8]} 18. Qb2
{[%clk 0:02:30.2]} 18... Rfe8 {[%clk 0:01:29]} 19. Bf3 {[%clk 0:02:19.9]} 19...
Re6 {[%clk 0:00:31.8]} 20. Rc1 {[%clk 0:01:57.1]} 20... Qe7 {[%clk 0:00:31]} 21.
Rfd1 {[%clk 0:01:52.7]} 21... Re8 {[%clk 0:00:30]} 22. h3 {[%clk 0:01:49.9]}
22... Bh6 {[%clk 0:00:15.7]} 23. Ra1 {[%clk 0:01:35.6]} 23... Bf4 {[%clk
0:00:15.2]} 24. g4 {[%clk 0:01:27.5]} 24... Be4 {[%clk 0:00:12.8]} 25. Bxe4
{[%clk 0:01:22.6]} 25... Nxe4 {[%clk 0:00:12.4]} 26. Nd5 {[%clk 0:01:23.1]}
26... Qh4 {[%clk 0:00:11.5]} 27. Nxf4 {[%clk 0:01:20]} 1-0

[Event "*** SCC Grand Prix: Titled Tuesday Blitz"]
[Site "Chess.com"]
[Date "2020.07.07"]
[Round "2"]
[White "MF1966Idrisov"]
[Black "KobyKalavannan"]
[Result "0-1"]
[WhiteElo "2320"]
[BlackElo "2628"]
[TimeControl "180+1"]
[EndTime "10:17:02 PDT"]
[Termination "KobyKalavannan won by checkmate"]

1. Nf3 {[%clk 0:03:00.9]} 1... c5 {[%clk 0:03:00.4]} 2. b3 {[%clk 0:02:57.2]}
2... Nc6 {[%clk 0:03:00.7]} 3. Bb2 {[%clk 0:02:57.3]} 3... d5 {[%clk 0:03:01.5]}
4. e3 {[%clk 0:02:56.8]} 4... Bg4 {[%clk 0:03:01.7]} 5. d4 {[%clk 0:02:56.9]}
5... Nf6 {[%clk 0:02:55.2]} 6. Be2 {[%clk 0:02:56.8]} 6... e6 {[%clk 0:02:51]}
7. O-O {[%clk 0:02:56.4]} 7... cxd4 {[%clk 0:02:47.1]} 8. Nxd4 {[%clk
0:02:54.9]} 8... Bxe2 {[%clk 0:02:36.6]} 9. Qxe2 {[%clk 0:02:54.2]} 9... Bd6
{[%clk 0:02:36.7]} 10. Nxc6 {[%clk 0:02:49.6]} 10... bxc6 {[%clk 0:02:36.8]} 11.
Nd2 {[%clk 0:02:49.7]} 11... h5 {[%clk 0:02:36.7]} 12. h3 {[%clk 0:02:48]} 12...
Qe7 {[%clk 0:02:26.4]} 13. e4 {[%clk 0:02:46.9]} 13... Bf4 {[%clk 0:02:19.4]}
14. Bxf6 {[%clk 0:02:35.4]} 14... Qxf6 {[%clk 0:02:18.5]} 15. exd5 {[%clk
0:02:31.8]} 15... cxd5 {[%clk 0:02:17.3]} 16. c4 {[%clk 0:02:27.7]} 16... Rd8
{[%clk 0:02:09]} 17. cxd5 {[%clk 0:02:21.5]} 17... Rxd5 {[%clk 0:02:09.9]} 18.
Nc4 {[%clk 0:02:20.9]} 18... O-O {[%clk 0:02:05.4]} 19. Rad1 {[%clk 0:02:19.7]}
19... Qg6 {[%clk 0:02:01.7]} 20. Rxd5 {[%clk 0:02:05.3]} 20... exd5 {[%clk
0:02:02.6]} 21. Ne3 {[%clk 0:02:04.9]} 21... d4 {[%clk 0:02:01.7]} 22. Nc4
{[%clk 0:02:03.9]} 22... d3 {[%clk 0:02:00.9]} 23. Qf3 {[%clk 0:02:03.9]} 23...
Bb8 {[%clk 0:01:54.4]} 24. Rd1 {[%clk 0:02:03.4]} 24... Rd8 {[%clk 0:01:54.3]}
25. Nb2 {[%clk 0:01:54.6]} 25... d2 {[%clk 0:01:51.5]} 26. Nc4 {[%clk
0:01:51.2]} 26... Qc2 {[%clk 0:01:50.2]} 27. Qe2 {[%clk 0:01:41.2]} 27... Bf4
{[%clk 0:01:48.9]} 28. g3 {[%clk 0:01:41]} 28... Bh6 {[%clk 0:01:18.1]} 29. f4
{[%clk 0:01:38.8]} 29... Rd3 {[%clk 0:01:14.3]} 30. Rxd2 {[%clk 0:00:56.2]}
30... Rxg3+ {[%clk 0:01:12.9]} 31. Kh2 {[%clk 0:00:55.7]} 31... Qc3 {[%clk
0:01:12.4]} 32. Qe8+ {[%clk 0:00:41.8]} 32... Kh7 {[%clk 0:01:11.6]} 33. Qxf7
{[%clk 0:00:35.1]} 33... Rxh3+ {[%clk 0:01:10.3]} 34. Kg2 {[%clk 0:00:35]} 34...
Qf3+ {[%clk 0:01:08.3]} 35. Kg1 {[%clk 0:00:33.5]} 35... Rh1# {[%clk 0:01:09.2]}
0-1

[Event "*** SCC Grand Prix: Titled Tuesday Blitz"]
[Site "Chess.com"]
[Date "2020.07.07"]
[Round "2"]
[White "Sanyura"]
[Black "GregShahade"]
[Result "0-1"]
[WhiteElo "2472"]
[BlackElo "2677"]
[TimeControl "180+1"]
[EndTime "10:17:05 PDT"]
[Termination "GregShahade won by resignation"]

1. e4 {[%clk 0:03:00.9]} 1... e5 {[%clk 0:02:59.4]} 2. Nf3 {[%clk 0:03:01.5]}
2... Nc6 {[%clk 0:02:59.6]} 3. Bb5 {[%clk 0:03:02.1]} 3... a6 {[%clk 0:03:00]}
4. Ba4 {[%clk 0:03:02.5]} 4... Nf6 {[%clk 0:03:00.1]} 5. O-O {[%clk 0:03:03.1]}
5... Be7 {[%clk 0:03:00.6]} 6. Re1 {[%clk 0:03:03.1]} 6... b5 {[%clk 0:03:00.7]}
7. Bb3 {[%clk 0:03:03.6]} 7... O-O {[%clk 0:03:01.3]} 8. c3 {[%clk 0:03:04]}
8... d5 {[%clk 0:03:01.3]} 9. exd5 {[%clk 0:03:04.2]} 9... Nxd5 {[%clk
0:03:02.2]} 10. Nxe5 {[%clk 0:03:04.3]} 10... Nxe5 {[%clk 0:03:03.1]} 11. Rxe5
{[%clk 0:03:04.8]} 11... c6 {[%clk 0:03:03.7]} 12. Bxd5 {[%clk 0:03:04.7]} 12...
cxd5 {[%clk 0:03:03.7]} 13. d4 {[%clk 0:03:05.3]} 13... Bd6 {[%clk 0:03:04.1]}
14. Re1 {[%clk 0:03:05.1]} 14... Qh4 {[%clk 0:03:03.9]} 15. g3 {[%clk
0:02:54.1]} 15... Qh3 {[%clk 0:03:03.9]} 16. Qf3 {[%clk 0:02:48.6]} 16... Bf5
{[%clk 0:02:58.3]} 17. Qxd5 {[%clk 0:02:44.4]} 17... Rae8 {[%clk 0:02:57.3]} 18.
Re3 {[%clk 0:02:33.9]} 18... Qg4 {[%clk 0:01:26.2]} 19. Nd2 {[%clk 0:00:12.5]}
19... Rxe3 {[%clk 0:01:20.1]} 20. fxe3 {[%clk 0:00:12.8]} 20... Qd1+ {[%clk
0:01:17.6]} 21. Kf2 {[%clk 0:00:12.5]} 21... Bg4 {[%clk 0:01:05.8]} 22. Qxd6
{[%clk 0:00:08.5]} 22... Qe2+ {[%clk 0:01:06]} 23. Kg1 {[%clk 0:00:08.9]} 23...
Bh3 {[%clk 0:01:03]} 24. Qd5 {[%clk 0:00:08.5]} 24... Qe1+ {[%clk 0:01:03]} 0-1

[Event "*** SCC Grand Prix: Titled Tuesday Blitz"]
[Site "Chess.com"]
[Date "2020.07.07"]
[Round "2"]
[White "Zmof"]
[Black "JSMastropiero"]
[Result "1-0"]
[WhiteElo "2223"]
[BlackElo "2419"]
[TimeControl "180+1"]
[EndTime "10:17:07 PDT"]
[Termination "Zmof won by resignation"]

1. e4 {[%clk 0:03:00.9]} 1... e5 {[%clk 0:02:48.3]} 2. Bc4 {[%clk 0:02:59.8]}
2... Nf6 {[%clk 0:02:47.2]} 3. d3 {[%clk 0:02:59.5]} 3... Nc6 {[%clk 0:02:45.4]}
4. Nf3 {[%clk 0:02:59.2]} 4... Be7 {[%clk 0:02:44.3]} 5. O-O {[%clk 0:02:58]}
5... O-O {[%clk 0:02:44.1]} 6. Bb3 {[%clk 0:02:57.2]} 6... d6 {[%clk 0:02:37.5]}
7. c3 {[%clk 0:02:56.7]} 7... d5 {[%clk 0:02:35.2]} 8. exd5 {[%clk 0:02:55.1]}
8... Nxd5 {[%clk 0:02:34]} 9. Re1 {[%clk 0:02:55.5]} 9... Bf6 {[%clk 0:02:29.7]}
10. Nbd2 {[%clk 0:02:51.8]} 10... Nf4 {[%clk 0:02:28]} 11. Ne4 {[%clk
0:02:37.8]} 11... Nxd3 {[%clk 0:02:14.1]} 12. Nxf6+ {[%clk 0:02:36.8]} 12...
gxf6 {[%clk 0:02:14.3]} 13. Bh6 {[%clk 0:02:22.6]} 13... Nxe1 {[%clk 0:02:09.1]}
14. Qxe1 {[%clk 0:02:22]} 14... Re8 {[%clk 0:01:55.9]} 15. Qe3 {[%clk
0:01:38.1]} 15... Bf5 {[%clk 0:01:51.9]} 16. Nh4 {[%clk 0:01:24.3]} 16... Bg6
{[%clk 0:01:48.3]} 17. Qg3 {[%clk 0:01:17.7]} 17... Qd3 {[%clk 0:01:31.8]} 18.
f3 {[%clk 0:01:08]} 18... Na5 {[%clk 0:01:25.2]} 19. Rd1 {[%clk 0:01:04.8]}
19... Qxd1+ {[%clk 0:00:45.9]} 20. Bxd1 {[%clk 0:01:03.3]} 20... Rad8 {[%clk
0:00:45.7]} 21. Be2 {[%clk 0:00:48.9]} 21... Rd6 {[%clk 0:00:41.7]} 22. Nf5
{[%clk 0:00:41]} 22... Rd7 {[%clk 0:00:38.2]} 23. h4 {[%clk 0:00:40]} 1-0

[Event "*** SCC Grand Prix: Titled Tuesday Blitz"]
[Site "Chess.com"]
[Date "2020.07.07"]
[Round "2"]
[White "I_Hit_18K_on_BS"]
[Black "Angel_Hranitel_37"]
[Result "0-1"]
[WhiteElo "2059"]
[BlackElo "2387"]
[TimeControl "180+1"]
[EndTime "10:17:09 PDT"]
[Termination "Angel_Hranitel_37 won by checkmate"]

1. e4 {[%clk 0:03:00.9]} 1... c5 {[%clk 0:02:59.7]} 2. Nf3 {[%clk 0:02:59.7]}
2... e6 {[%clk 0:03:00]} 3. d4 {[%clk 0:02:59.3]} 3... cxd4 {[%clk 0:03:00.9]}
4. Nxd4 {[%clk 0:02:59.8]} 4... Nf6 {[%clk 0:03:01.4]} 5. Nc3 {[%clk 0:02:58.5]}
5... Nc6 {[%clk 0:03:01.5]} 6. Ndb5 {[%clk 0:02:58.3]} 6... Bc5 {[%clk
0:03:01.4]} 7. Nd6+ {[%clk 0:02:57.1]} 7... Ke7 {[%clk 0:03:01]} 8. Bf4 {[%clk
0:02:57.3]} 8... e5 {[%clk 0:03:00.9]} 9. Nf5+ {[%clk 0:02:57.3]} 9... Kf8
{[%clk 0:03:00.8]} 10. Bg5 {[%clk 0:02:57.5]} 10... d6 {[%clk 0:02:57.8]} 11.
Nd5 {[%clk 0:02:56]} 11... Bxf2+ {[%clk 0:02:53.7]} 12. Ke2 {[%clk 0:02:49.7]}
12... Bxf5 {[%clk 0:02:50.1]} 13. Nxf6 {[%clk 0:02:45.5]} 13... gxf6 {[%clk
0:02:43.1]} 14. Bh6+ {[%clk 0:02:45.3]} 14... Ke7 {[%clk 0:02:43.3]} 15. exf5
{[%clk 0:02:43.6]} 15... Bc5 {[%clk 0:02:30.9]} 16. Ke1 {[%clk 0:02:38.5]} 16...
Nd4 {[%clk 0:02:27.4]} 17. c3 {[%clk 0:02:37.6]} 17... Nxf5 {[%clk 0:02:27]} 18.
Bc1 {[%clk 0:02:34]} 18... Qb6 {[%clk 0:02:25.8]} 19. Bc4 {[%clk 0:02:31.7]}
19... Bf2+ {[%clk 0:02:12.3]} 20. Kf1 {[%clk 0:02:30.8]} 20... Be3 {[%clk
0:01:50.9]} 21. Qd5 {[%clk 0:02:28.2]} 21... Rhf8 {[%clk 0:01:50.6]} 22. g4
{[%clk 0:02:19.9]} 22... Bxc1 {[%clk 0:01:47.4]} 23. gxf5 {[%clk 0:02:19.4]}
23... Qxb2 {[%clk 0:01:40.4]} 24. h4 {[%clk 0:02:10.6]} 24... Rab8 {[%clk
0:01:19.8]} 25. Rh3 {[%clk 0:02:04]} 25... Qxa1 {[%clk 0:01:17.2]} 26. Rd3
{[%clk 0:02:04.4]} 26... Ba3+ {[%clk 0:01:11.8]} 27. Rd1 {[%clk 0:02:02.9]}
27... Qb2 {[%clk 0:01:12.1]} 28. Bb5 {[%clk 0:01:58]} 28... Qxc3 {[%clk
0:01:00.1]} 29. Rd3 {[%clk 0:01:57.2]} 29... Qc1+ {[%clk 0:01:00]} 30. Ke2
{[%clk 0:01:53.8]} 30... Qc5 {[%clk 0:00:53.1]} 31. Qb3 {[%clk 0:01:40.7]} 31...
a6 {[%clk 0:00:52.7]} 32. Ba4 {[%clk 0:01:29.2]} 32... b5 {[%clk 0:00:52]} 33.
Rc3 {[%clk 0:01:28.9]} 33... bxa4 {[%clk 0:00:46]} 34. Qc2 {[%clk 0:01:28.7]}
34... Rb2 {[%clk 0:00:40.9]} 35. Rxc5 {[%clk 0:01:27.9]} 35... dxc5 {[%clk
0:00:41]} 36. Qxb2 {[%clk 0:01:26.4]} 36... Bxb2 {[%clk 0:00:41.9]} 37. Kd3
{[%clk 0:01:26.6]} 37... a3 {[%clk 0:00:42.8]} 38. Kc4 {[%clk 0:01:27]} 38...
Rc8 {[%clk 0:00:43]} 39. h5 {[%clk 0:01:27.4]} 39... h6 {[%clk 0:00:42.8]} 40.
Kd5 {[%clk 0:01:26.3]} 40... c4 {[%clk 0:00:42.4]} 41. Ke4 {[%clk 0:01:25.1]}
41... c3 {[%clk 0:00:42.4]} 42. Kd5 {[%clk 0:01:24.8]} 42... c2 {[%clk
0:00:42.5]} 43. Ke4 {[%clk 0:01:25.7]} 43... c1=Q {[%clk 0:00:41.1]} 44. Kf3
{[%clk 0:01:25.7]} 44... Rc3+ {[%clk 0:00:39.8]} 45. Kg4 {[%clk 0:01:24.7]}
45... Qf4# {[%clk 0:00:39.7]} 0-1

[Event "*** SCC Grand Prix: Titled Tuesday Blitz"]
[Site "Chess.com"]
[Date "2020.07.07"]
[Round "2"]
[White "wild_cat99"]
[Black "PSvidler"]
[Result "0-1"]
[WhiteElo "2601"]
[BlackElo "3012"]
[TimeControl "180+1"]
[EndTime "10:17:11 PDT"]
[Termination "PSvidler won by resignation"]

1. Nf3 {[%clk 0:03:00.9]} 1... d5 {[%clk 0:02:59.5]} 2. e3 {[%clk 0:03:00.1]}
2... c5 {[%clk 0:02:54.7]} 3. b3 {[%clk 0:02:59]} 3... a6 {[%clk 0:02:48.7]} 4.
Bb2 {[%clk 0:02:58.5]} 4... Nc6 {[%clk 0:02:48.7]} 5. d4 {[%clk 0:02:57.7]} 5...
cxd4 {[%clk 0:02:46.4]} 6. Nxd4 {[%clk 0:02:57.7]} 6... Nf6 {[%clk 0:02:42]} 7.
c4 {[%clk 0:02:52.3]} 7... e6 {[%clk 0:02:18.6]} 8. Nc3 {[%clk 0:02:45.4]} 8...
Be7 {[%clk 0:02:03.3]} 9. cxd5 {[%clk 0:02:38.3]} 9... exd5 {[%clk 0:02:03.4]}
10. Be2 {[%clk 0:02:35.7]} 10... O-O {[%clk 0:02:03.4]} 11. O-O {[%clk 0:02:36]}
11... Re8 {[%clk 0:01:53.7]} 12. Bf3 {[%clk 0:02:28.3]} 12... Ne5 {[%clk
0:01:52.5]} 13. h3 {[%clk 0:02:19.5]} 13... Nxf3+ {[%clk 0:01:46.5]} 14. Qxf3
{[%clk 0:02:20.4]} 14... Bd6 {[%clk 0:01:46.7]} 15. Nf5 {[%clk 0:02:16.5]} 15...
Be5 {[%clk 0:01:43.2]} 16. Rfd1 {[%clk 0:02:07.1]} 16... Bxf5 {[%clk 0:01:27.8]}
17. Qxf5 {[%clk 0:02:06.3]} 17... Qc8 {[%clk 0:01:28.7]} 18. Qd3 {[%clk
0:01:56.9]} 18... Ne4 {[%clk 0:01:23.9]} 19. Na4 {[%clk 0:01:53.4]} 19... Qf5
{[%clk 0:01:03.4]} 20. Bxe5 {[%clk 0:01:50.5]} 20... Qxf2+ {[%clk 0:01:02.8]}
21. Kh2 {[%clk 0:01:35.9]} 21... Rxe5 {[%clk 0:01:03.7]} 22. Rf1 {[%clk
0:01:30.4]} 22... Qg3+ {[%clk 0:01:03.2]} 23. Kg1 {[%clk 0:01:30.7]} 23... Rg5
{[%clk 0:01:01.4]} 24. Qe2 {[%clk 0:01:24.8]} 24... Qxh3 {[%clk 0:01:01.3]} 25.
Qf3 {[%clk 0:01:24.2]} 25... Qxf3 {[%clk 0:00:58.5]} 26. Rxf3 {[%clk 0:01:25.1]}
26... Rc8 {[%clk 0:00:59]} 27. Raf1 {[%clk 0:01:24.8]} 27... Rc2 {[%clk
0:00:58.7]} 28. Rd1 {[%clk 0:01:11.6]} 28... Rcxg2+ {[%clk 0:00:57.1]} 29. Kf1
{[%clk 0:01:11.8]} 29... Nd2+ {[%clk 0:00:56.7]} 30. Rxd2 {[%clk 0:01:04.8]}
30... Rxd2 {[%clk 0:00:57.6]} 31. Nc5 {[%clk 0:01:05.7]} 31... h5 {[%clk
0:00:56.2]} 32. Nxb7 {[%clk 0:01:05.6]} 32... h4 {[%clk 0:00:56.1]} 33. Nd6
{[%clk 0:01:04.1]} 33... Rgg2 {[%clk 0:00:53.9]} 34. Nf5 {[%clk 0:00:49.5]}
34... Rh2 {[%clk 0:00:53.2]} 35. Kg1 {[%clk 0:00:44.7]} 35... h3 {[%clk
0:00:52.6]} 36. Ne7+ {[%clk 0:00:44.5]} 36... Kf8 {[%clk 0:00:51.4]} 37. Nxd5
{[%clk 0:00:44.7]} 37... Rdg2+ {[%clk 0:00:50.8]} 0-1

[Event "*** SCC Grand Prix: Titled Tuesday Blitz"]
[Site "Chess.com"]
[Date "2020.07.07"]
[Round "2"]
[White "sri5996"]
[Black "Kildepiotr"]
[Result "0-1"]
[WhiteElo "2288"]
[BlackElo "2608"]
[TimeControl "180+1"]
[EndTime "10:17:11 PDT"]
[Termination "Kildepiotr won by resignation"]

1. d4 {[%clk 0:03:00.9]} 1... c5 {[%clk 0:02:59.5]} 2. d5 {[%clk 0:03:00.5]}
2... e5 {[%clk 0:02:59.6]} 3. Nc3 {[%clk 0:02:31.5]} 3... d6 {[%clk 0:02:59.4]}
4. e4 {[%clk 0:02:26.6]} 4... Be7 {[%clk 0:02:59.5]} 5. Nf3 {[%clk 0:02:21.8]}
5... Bg4 {[%clk 0:02:58.8]} 6. h3 {[%clk 0:02:17.9]} 6... Bxf3 {[%clk
0:02:58.7]} 7. Qxf3 {[%clk 0:02:13.6]} 7... Bg5 {[%clk 0:02:58.7]} 8. Bxg5
{[%clk 0:02:06.2]} 8... Qxg5 {[%clk 0:02:58]} 9. h4 {[%clk 0:02:06.5]} 9... Qd8
{[%clk 0:02:57.5]} 10. Nd1 {[%clk 0:02:00.4]} 10... Ne7 {[%clk 0:02:56.5]} 11.
Ne3 {[%clk 0:02:00.4]} 11... Nd7 {[%clk 0:02:53.3]} 12. h5 {[%clk 0:01:53.5]}
12... h6 {[%clk 0:02:52.9]} 13. Nf5 {[%clk 0:01:51]} 13... Nxf5 {[%clk
0:02:52.1]} 14. Qxf5 {[%clk 0:01:51.9]} 14... O-O {[%clk 0:02:51.2]} 15. O-O-O
{[%clk 0:01:51.4]} 15... a6 {[%clk 0:02:49.7]} 16. Kb1 {[%clk 0:01:48.8]} 16...
b5 {[%clk 0:02:49.5]} 17. g4 {[%clk 0:01:41.6]} 17... c4 {[%clk 0:02:46.9]} 18.
g5 {[%clk 0:01:39.9]} 18... hxg5 {[%clk 0:02:45.5]} 19. Bh3 {[%clk 0:01:22.4]}
19... Nc5 {[%clk 0:02:44.2]} 20. Rdg1 {[%clk 0:01:22.5]} 20... Qf6 {[%clk
0:02:40.5]} 21. Rxg5 {[%clk 0:01:19.1]} 21... Nxe4 {[%clk 0:02:22.5]} 22. Rg2
{[%clk 0:00:52.5]} 22... Qxf5 {[%clk 0:02:16.6]} 23. Bxf5 {[%clk 0:00:53.4]}
23... Nf6 {[%clk 0:02:16.4]} 24. Rg5 {[%clk 0:00:42]} 24... Kh8 {[%clk
0:02:12.1]} 25. Rhg1 {[%clk 0:00:24.1]} 25... Rg8 {[%clk 0:02:12.1]} 26. f3
{[%clk 0:00:21.5]} 26... Rae8 {[%clk 0:02:04.6]} 27. Rh1 {[%clk 0:00:17.3]}
27... Nxd5 {[%clk 0:01:55.9]} 28. Bg6 {[%clk 0:00:16.4]} 28... Rgf8 {[%clk
0:01:41.2]} 29. Be4 {[%clk 0:00:10.9]} 29... Nf4 {[%clk 0:01:35.8]} 30. Rhg1
{[%clk 0:00:09.4]} 30... Nh3 {[%clk 0:01:35]} 31. Rxg7 {[%clk 0:00:08.9]} 31...
Nxg1 {[%clk 0:01:35.1]} 32. h6 {[%clk 0:00:09.2]} 32... f5 {[%clk 0:01:30.8]}
33. Bd5 {[%clk 0:00:08.3]} 33... Rg8 {[%clk 0:01:28.3]} 34. Bxg8 {[%clk
0:00:06]} 34... Rxg8 {[%clk 0:01:29.2]} 0-1